bitfinex-derivatives/quotes_BTCF0:USTF0_20251217
["timestamp","ask_amount","ask_price","bid_price","bid_amount"]
[1765994410007,0.0115505,86604.0,86594.0,0.36128604]
[1765994410210,0.3608,86595.0,86578.0,0.3608]
[1765994410528,0.3608,86579.0,86566.0,0.47528]
[1765994410706,0.3608,86579.0,86564.0,0.3608]
[1765994410909,0.36063,86579.0,86564.0,0.3723557]
[1765994411102,0.36063,86579.0,86564.0,0.3608]
[1765994411707,0.36063,86579.0,86565.0,0.0115556]
[1765994411906,0.36063,86579.0,86569.0,0.0115551]
[1765994412112,5e-08,86580.0,86576.0,0.3723542]
[1765994412508,5e-08,86580.0,86576.0,0.3608]
[1765994412809,0.3608,86604.0,86577.0,0.3608]
[1765994413013,0.3608,86604.0,86594.0,0.3608]
[1765994413199,0.3608,86611.0,86594.0,0.3608]
[1765994413512,0.01155,86608.0,86594.0,0.3608]
[1765994414108,0.0115522,86591.0,86567.0,0.3608]
[1765994414405,0.3608,86582.0,86568.0,0.02919064]
[1765994414608,0.3608,86592.0,86573.0,0.1608]
[1765994414809,0.3658,86605.0,86581.0,0.3608]
[1765994415013,0.3658,86605.0,86586.0,0.0115528]
[1765994415201,0.00017321,86602.0,86586.0,0.0115528]
[1765994415401,0.00017321,86602.0,86584.0,0.00017321]
[1765994415603,0.00017321,86602.0,86584.0,0.01172631]
[1765994415998,0.00017321,86602.0,86596.0,0.3608]
[1765994416199,1e-08,86605.0,86596.0,0.3608]
[1765994416404,0.3608,86620.0,86604.0,0.3608]
[1765994416702,0.69448224,86620.0,86604.0,0.3608]
[1765994416907,0.3608,86611.0,86597.0,0.0115514]
[1765994417106,0.3608,86611.0,86600.0,0.0115509]
[1765994417311,0.3608,86620.0,86597.0,0.00017321]
[1765994417800,0.3723484,86620.0,86597.0,0.00017321]
[1765994417999,0.0115489,86616.0,86597.0,0.00017321]
[1765994418211,1e-07,86618.0,86600.0,0.33368224]
[1765994418511,0.3608,86630.0,86620.0,0.0115483]
[1765994418715,0.3608,86646.0,86627.0,0.3608]
[1765994419515,0.0115458,86639.0,86627.0,0.3608]
[1765994420012,0.0115458,86639.0,86617.0,0.3608]
[1765994420013,0.0115471,86629.0,86617.0,0.3608]
[1765994420216,0.3608,86630.0,86617.0,0.3608]
[1765994421912,0.3608,86630.0,86617.0,0.3618]
[1765994422812,0.3608,86630.0,86620.0,0.0115482]
[1765994423010,0.3608,86639.0,86620.0,0.0115482]
[1765994423209,0.3608,86639.0,86617.0,0.3618]
[1765994423412,0.3608,86639.0,86624.0,0.3608]
[1765994423613,0.3608,86639.0,86624.0,0.3723478]
[1765994423811,0.3608,86639.0,86624.0,0.3608]
[1765994424907,0.3608,86625.0,86617.0,0.001]
[1765994425115,0.3608,86618.0,86616.0,3.21e-06]
[1765994425310,0.3608,86618.0,86600.0,0.0115509]
[1765994425311,0.3608,86618.0,86596.0,0.02896208]
[1765994425524,0.3608,86618.0,86597.0,0.3608]
[1765994425525,0.3608,86610.0,86597.0,0.3608]
[1765994426216,0.3608,86598.0,86595.0,0.00017321]
[1765994426413,0.3608,86598.0,86590.0,0.02881105]
[1765994426414,0.3608,86596.0,86570.0,0.33368224]
[1765994426601,0.005,86605.0,86580.0,0.33368224]
[1765994426802,0.005,86605.0,86598.0,0.0115512]
[1765994427006,0.005,86605.0,86598.0,0.3723512]
[1765994427618,0.005,86605.0,86598.0,0.3608]
[1765994428115,0.005,86605.0,86598.0,0.3618]
[1765994428905,0.3608,86604.0,86588.0,0.35097321]
[1765994430125,0.3608,86604.0,86595.0,0.0115516]
[1765994430309,0.3608,86604.0,86592.0,0.011552]
[1765994430519,0.005,86605.0,86592.0,0.011552]
[1765994430719,0.005,86605.0,86589.0,0.0115524]
[1765994431021,0.005,86605.0,86592.0,0.011552]
[1765994431206,0.005,86605.0,86588.0,0.35197321]
[1765994431412,0.005,86605.0,86592.0,0.001]
[1765994431922,0.005,86605.0,86590.0,0.0115523]
[1765994432120,0.005,86605.0,86593.0,0.0115519]
[1765994433209,0.00017321,86610.0,86596.0,0.3608]
[1765994433623,0.00017321,86610.0,86600.0,0.0115509]
[1765994433827,0.00017321,86610.0,86596.0,0.3608]
[1765994434520,0.00017321,86610.0,86603.0,0.0115505]
[1765994435021,1e-08,86610.0,86607.0,0.01155]
[1765994435522,1e-08,86610.0,86604.0,0.3608]
[1765994436022,1e-08,86610.0,86596.0,0.3618]
[1765994436329,1e-08,86610.0,86584.0,0.38919428]
[1765994436330,0.3608,86604.0,86584.0,0.38919428]
[1765994436629,0.3608,86605.0,86595.0,0.0115516]
[1765994436924,0.3608,86605.0,86594.0,0.3608]
[1765994437222,0.3608,86605.0,86593.0,0.0115519]
[1765994437420,0.3608,86605.0,86590.0,0.36097321]
[1765994437814,0.3598,86605.0,86590.0,0.36097321]
[1765994438014,0.3598,86605.0,86592.0,0.011552]
[1765994438225,0.3598,86605.0,86590.0,0.36097321]
[1765994439222,0.3598,86605.0,86590.0,0.69465545]
[1765994439519,1e-08,86610.0,86604.0,0.3608]
[1765994439830,0.001,86605.0,86604.0,0.3608]
[1765994440220,1e-08,86610.0,86604.0,0.3608]
[1765994440518,1e-08,86610.0,86606.0,0.0115501]
[1765994440720,0.3608,86630.0,86606.0,0.0115501]
[1765994440924,0.3608,86630.0,86616.0,0.3608]
[1765994441427,0.0115468,86632.0,86623.0,0.3608]
[1765994441628,0.011547,86630.0,86623.0,0.3608]
[1765994441830,0.3608,86627.0,86619.0,0.00017321]
[1765994443722,0.3618,86627.0,86619.0,0.00017321]
[1765994444824,0.0115489,86616.0,86598.0,0.3723512]
[1765994445030,0.3608,86611.0,86598.0,0.3608]
[1765994445231,0.3608,86611.0,86602.0,0.0115506]
[1765994445420,0.33368224,86630.0,86598.0,0.39014545]
[1765994445421,0.3608,86617.0,86605.0,0.3608]
[1765994447526,0.3608,86617.0,86606.0,0.0115502]
[1765994447721,0.3608,86617.0,86608.0,0.0115499]
[1765994448426,0.00017321,86620.0,86616.0,0.3608]
[1765994448727,1e-08,86620.0,86618.0,0.3608]
[1765994448933,1e-08,86620.0,86619.0,0.0115485]
[1765994449232,1e-08,86620.0,86618.0,0.3608]
[1765994450135,1e-08,86620.0,86618.0,0.3408]
[1765994450525,0.00100001,86620.0,86618.0,0.3408]
[1765994451227,0.36180001,86620.0,86604.0,0.3608]
[1765994451417,0.3608,86609.0,86590.0,0.42476]
[1765994451825,0.3608,86599.0,86593.0,0.0115518]
[1765994452022,0.3608,86599.0,86590.0,0.0115522]
[1765994452229,0.3608,86599.0,86589.0,0.02938854]
[1765994452417,0.3608,86592.0,86585.0,0.00017321]
[1765994452623,0.00017321,86603.0,86590.0,0.001]
[1765994452822,0.00017321,86603.0,86601.0,0.3608]
[1765994454432,0.00017321,86603.0,86594.0,0.3608]
[1765994454433,0.36097321,86603.0,86594.0,0.3608]
[1765994454834,0.36097321,86603.0,86590.0,0.0115522]
[1765994455041,0.36097321,86603.0,86587.0,0.0115527]
[1765994455420,0.36097321,86603.0,86589.0,0.0115523]
[1765994455723,0.36097321,86603.0,86586.0,0.3608]
[1765994455724,0.36097321,86603.0,86591.0,0.0115521]
[1765994455929,0.00017321,86603.0,86593.0,0.0115518]
[1765994456129,0.00017321,86603.0,86595.0,0.0115516]
[1765994456432,0.00017321,86603.0,86594.0,0.0115517]
[1765994456632,1e-08,86603.0,86600.0,0.011551]
[1765994456833,1e-08,86603.0,86594.0,0.3608]
[1765994456834,0.3608,86610.0,86604.0,0.0115503]
[1765994457040,0.3608,86620.0,86609.0,0.3608]
[1765994457837,0.3608,86620.0,86612.0,0.0115493]
[1765994458034,0.00017321,86623.0,86619.0,0.3608]
[1765994460336,1e-08,86623.0,86620.0,0.0115483]
[1765994460932,0.3608,86638.0,86619.0,0.3608]
[1765994461132,0.372346,86638.0,86627.0,0.3608]
[1765994461331,0.3608,86646.0,86628.0,0.0115473]
[1765994461538,0.0115452,86644.0,86627.0,0.3608]
[1765994461738,0.3608,86629.0,86619.0,0.3608]
[1765994461936,0.3608,86636.0,86619.0,0.3608]
[1765994462133,0.00017321,86633.0,86619.0,0.3608]
[1765994462333,0.00017321,86633.0,86618.0,0.0115485]
[1765994462534,0.00017321,86633.0,86617.0,0.0115486]
[1765994462734,0.3608,86629.0,86615.0,0.00017321]
[1765994462937,0.3608,86617.0,86615.0,0.00017321]
[1765994463834,0.3608,86621.0,86615.0,0.00017321]
[1765994464832,0.3608,86621.0,86615.0,0.00117321]
[1765994465236,0.0115499,86608.0,86607.0,0.3108]
[1765994465438,0.0115512,86599.0,86583.0,0.03392888]
[1765994465641,0.0115507,86603.0,86576.0,0.31948]
[1765994465846,0.3608,86596.0,86583.0,0.2208]
[1765994466236,0.3608,86596.0,86574.0,0.02842295]
[1765994466237,0.3608,86588.0,86569.0,0.27939616]
[1765994466434,0.3608,86578.0,86569.0,0.27939616]
[1765994466634,0.3608,86570.0,86560.0,0.63591263]
[1765994466944,0.3608,86578.0,86576.0,0.002]
[1765994467541,0.3608,86578.0,86568.0,0.00017321]
[1765994467842,0.00017321,86586.0,86574.0,0.3608]
[1765994468644,1e-08,86586.0,86583.0,0.0115532]
[1765994469236,0.3608,86611.0,86585.0,0.3608]
[1765994469546,0.3608,86611.0,86597.0,0.3608]
[1765994469738,0.0165504,86605.0,86597.0,0.3608]
[1765994469943,0.0165504,86605.0,86586.0,0.58356]
[1765994469944,0.3608,86604.0,86586.0,0.58356]
[1765994470135,0.36097321,86604.0,86586.0,0.58373321]
[1765994470833,0.36097321,86604.0,86593.0,0.3608]
[1765994471544,0.00017321,86604.0,86593.0,0.3608]
[1765994471743,1e-08,86605.0,86603.0,0.0115505]
[1765994471935,0.33368224,86630.0,86600.0,0.3608]
[1765994471936,0.62344,86639.0,86604.0,0.3608]
[1765994472141,0.0115464,86635.0,86614.0,0.3608]
[1765994472343,0.62344,86639.0,86622.0,0.3608]
[1765994472538,0.3608,86639.0,86622.0,0.372348]
[1765994472950,0.36097321,86639.0,86622.0,0.37252121]
[1765994473550,0.36097321,86639.0,86622.0,0.36097321]
[1765994474142,0.0115485,86619.0,86600.0,0.3723509]
[1765994474342,0.3608,86612.0,86600.0,0.011551]
[1765994474542,0.3608,86612.0,86598.0,0.0115512]
[1765994474852,0.3608,86605.0,86597.0,0.0115513]
[1765994475053,0.3608,86605.0,86596.0,0.0115514]
[1765994475250,0.3608,86605.0,86594.0,0.3608]
[1765994475644,0.3608,86605.0,86594.0,0.3723517]
[1765994475846,0.3608,86605.0,86592.0,0.00017321]
[1765994476251,0.3608,86598.0,86592.0,0.00017321]
[1765994476453,0.3608,86598.0,86570.0,0.22748153]
[1765994476454,0.0115523,86591.0,86570.0,0.22748153]
[1765994476638,0.3608,86579.0,86571.0,0.0115549]
[1765994476840,0.3608,86589.0,86573.0,0.3608]
[1765994477045,0.005,86605.0,86589.0,0.0115524]
[1765994477243,0.005,86605.0,86596.0,0.3608]
[1765994477548,0.3608,86619.0,86604.0,0.3608]
[1765994477549,3.21e-06,86609.0,86604.0,0.3608]
[1765994478538,3.21e-06,86609.0,86606.0,0.3608]
[1765994478741,0.0115469,86631.0,86609.0,0.0115497]
[1765994478947,0.3608,86633.0,86620.0,0.22748153]
[1765994479152,0.3608,86633.0,86619.0,0.3608]
[1765994479538,0.005,86647.0,86628.0,0.3608]
[1765994479753,0.0115451,86645.0,86629.0,0.00017321]
[1765994479955,0.00017321,86646.0,86636.0,0.3608]
[1765994480257,0.011545,86645.0,86636.0,0.3608]
[1765994480554,0.3608,86639.0,86629.0,0.00017321]
[1765994482350,0.3618,86639.0,86629.0,0.00017321]
[1765994483153,0.00017321,86646.0,86638.0,0.3608]
[1765994483351,0.00017321,86646.0,86645.0,0.3608]
[1765994483650,3.21e-06,86647.0,86645.0,0.3608]
[1765994483842,3.21e-06,86647.0,86639.0,0.0115458]
[1765994483843,3.21e-06,86647.0,86633.0,0.0115466]
[1765994484043,3.21e-06,86647.0,86638.0,0.3608]
[1765994484246,3.21e-06,86647.0,86645.0,0.3608]
[1765994484457,0.00230794,86658.0,86645.0,0.3608]
[1765994484458,0.00230794,86658.0,86652.0,0.0115439]
[1765994484640,0.0115414,86672.0,86652.0,0.3723439]
[1765994485046,0.3608,86675.0,86652.0,0.3723439]
[1765994485248,0.0115413,86673.0,86652.0,0.3723439]
[1765994485447,0.0115413,86673.0,86652.0,0.3608]
[1765994485647,0.3608,86667.0,86654.0,0.00017311]
[1765994486846,0.001,86665.0,86654.0,0.00017311]
[1765994487242,0.0115425,86664.0,86654.0,0.00017311]
[1765994487644,0.3618,86667.0,86654.0,0.00017311]
[1765994487844,0.3723432,86659.0,86654.0,3.11e-06]
[1765994489058,0.3608,86659.0,86654.0,3.11e-06]
[1765994489243,0.001,86664.0,86654.0,3.11e-06]
[1765994489643,0.011543,86661.0,86654.0,3.11e-06]
[1765994489858,0.0115426,86663.0,86654.0,3.11e-06]
[1765994490243,0.001,86659.0,86654.0,3.11e-06]
[1765994490759,0.3608,86660.0,86654.0,3.11e-06]
[1765994491344,0.001,86659.0,86654.0,3.11e-06]
[1765994492052,0.00017288,86671.0,86659.0,0.011543]
[1765994492251,0.00017288,86671.0,86660.0,0.22730868]
[1765994492853,0.001,86660.0,86656.0,0.3608]
[1765994493353,0.01171448,86671.0,86656.0,0.3608]
[1765994493758,0.01171448,86671.0,86655.0,0.3608]
[1765994493759,0.3608,86669.0,86655.0,0.3608]
[1765994493958,0.3608,86660.0,86654.0,3.11e-06]
[1765994494547,0.3608,86660.0,86656.0,0.001]
[1765994495057,0.3608,86660.0,86654.0,3.11e-06]
[1765994496752,0.3723431,86660.0,86654.0,3.11e-06]
[1765994496955,0.0115437,86655.0,86654.0,3.11e-06]
[1765994497461,0.3608,86658.0,86654.0,3.11e-06]
[1765994498868,0.50188,86676.0,86654.0,0.36080311]
[1765994498869,0.0115423,86666.0,86654.0,0.36080311]
[1765994499466,0.0115427,86662.0,86654.0,0.36080311]
[1765994500259,0.0115421,86667.0,86654.0,0.36180311]
[1765994500457,0.22730868,86670.0,86654.0,0.36180311]
[1765994500661,0.22730868,86670.0,86654.0,0.36080311]
[1765994500862,0.3608,86657.0,86646.0,0.0115448]
[1765994501363,0.0115436,86656.0,86645.0,0.3608]
[1765994501568,0.3608,86648.0,86634.0,0.3608]
[1765994502468,0.3608,86641.0,86632.0,0.00017311]
[1765994503454,0.3608,86648.0,86642.0,0.0115454]
[1765994503669,0.3608,86648.0,86634.0,0.001]
[1765994503670,0.00017311,86650.0,86638.0,0.58810868]
[1765994503869,0.00017311,86650.0,86646.0,0.3608]
[1765994504069,3.11e-06,86650.0,86646.0,0.3723448]
[1765994504368,3.11e-06,86650.0,86646.0,0.3608]
[1765994505073,3.11e-06,86650.0,86638.0,0.3608]
[1765994505074,0.3608,86647.0,86638.0,0.3608]
[1765994505271,0.3608,86647.0,86633.0,0.3723465]
[1765994505676,0.0115451,86644.0,86633.0,0.3608]
[1765994505874,0.3608,86639.0,86632.0,3.11e-06]
[1765994506071,0.0115459,86638.0,86632.0,3.11e-06]
[1765994506271,0.0115459,86638.0,86625.0,0.005]
[1765994506272,0.0115468,86632.0,86625.0,1e-08]
[1765994506574,0.3608,86631.0,86625.0,1e-08]
[1765994507474,0.0115473,86628.0,86625.0,1e-08]
[1765994507774,0.3723469,86631.0,86625.0,1e-08]
[1765994508369,0.0115472,86629.0,86625.0,1e-08]
[1765994508769,0.3608,86631.0,86625.0,1e-08]
[1765994509678,0.001,86629.0,86625.0,1e-08]
[1765994510162,0.3618,86631.0,86625.0,1e-08]
[1765994510369,0.011547,86630.0,86625.0,1e-08]
[1765994511076,0.0115472,86629.0,86625.0,1e-08]
[1765994511282,0.3618,86631.0,86625.0,1e-08]
[1765994511775,0.001,86629.0,86625.0,1e-08]
[1765994512279,0.3618,86631.0,86625.0,1e-08]
[1765994512874,0.001,86629.0,86625.0,1e-08]
[1765994513479,0.3618,86631.0,86625.0,1e-08]
[1765994514869,0.3608,86631.0,86625.0,1e-08]
[1765994515176,0.011547,86630.0,86625.0,1e-08]
[1765994515378,0.3608,86631.0,86625.0,1e-08]
[1765994515767,0.3608,86639.0,86625.0,0.00100001]
[1765994515971,0.3608,86646.0,86636.0,0.0115462]
[1765994516172,0.005,86647.0,86641.0,0.3608]
[1765994516869,0.005,86647.0,86641.0,0.3723454]
[1765994517471,3.11e-06,86650.0,86645.0,0.0115449]
[1765994517668,3.11e-06,86650.0,86642.0,0.3608]
[1765994517884,3.11e-06,86650.0,86649.0,0.3608]
[1765994518180,0.3608,86674.0,86649.0,0.3608]
[1765994518381,0.0115416,86671.0,86657.0,0.3608]
[1765994518570,0.3608,86674.0,86657.0,0.3608]
[1765994518770,0.3723411,86674.0,86657.0,0.3608]
[1765994519173,0.36097311,86674.0,86657.0,0.36097311]
[1765994519770,0.0115416,86671.0,86657.0,0.36197311]
[1765994520277,0.36097311,86674.0,86664.0,0.3608]
[1765994520874,0.3608,86667.0,86657.0,0.36197311]
[1765994521182,0.3608,86660.0,86657.0,3.11e-06]
[1765994521678,0.3608,86660.0,86657.0,0.001]
[1765994522084,0.3608,86660.0,86650.0,0.00017311]
[1765994522669,0.3608,86660.0,86644.0,0.3608]
[1765994522670,0.58810868,86660.0,86644.0,0.3608]
[1765994522878,0.3608,86682.0,86656.0,0.3608]
[1765994523091,0.22730868,86700.0,86681.0,0.3608]
[1765994523279,0.0115371,86704.0,86687.0,0.7216]
[1765994523478,0.0115372,86704.0,86687.0,0.7216]
[1765994523785,0.0115377,86700.0,86687.0,0.7216]
[1765994523974,0.00017311,86696.0,86687.0,0.55493]
[1765994524784,0.0115387,86693.0,86687.0,0.55493]
[1765994525087,0.006,86688.0,86687.0,0.55493]
[1765994525385,0.00017311,86696.0,86687.0,0.55493]
[1765994525585,0.00017311,86696.0,86687.0,0.19413]
[1765994526788,1e-08,86696.0,86687.0,0.19413]
[1765994526991,1e-08,86696.0,86694.0,0.3608]
[1765994527382,8e-08,86698.0,86694.0,0.3608]
[1765994527583,0.001,86696.0,86694.0,0.3608]
[1765994527881,8e-08,86698.0,86694.0,0.3608]
[1765994528084,0.001,86696.0,86694.0,0.3608]
[1765994528389,8e-08,86698.0,86694.0,0.3608]
[1765994528892,8e-08,86698.0,86687.0,0.19413]
[1765994529080,0.37182494,86691.0,86670.0,0.22730868]
[1765994529386,0.3608,86683.0,86679.0,3.11e-06]
[1765994531396,0.3608,86683.0,86679.0,0.00100311]
[1765994531893,0.3608,86683.0,86675.0,0.02891837]
[1765994532074,0.3723401,86683.0,86672.0,0.3608]
[1765994532480,0.3723401,86683.0,86666.0,0.005]
[1765994532481,0.0115412,86674.0,86666.0,0.005]
[1765994532676,0.3608,86675.0,86661.0,0.02950006]
[1765994532677,0.3608,86667.0,86661.0,0.02950006]
[1765994532882,0.3608,86667.0,86640.0,0.3608]
[1765994532883,0.0115434,86657.0,86655.0,3.11e-06]
[1765994533087,0.3608,86656.0,86655.0,3.11e-06]
[1765994533481,0.3608,86665.0,86655.0,3.11e-06]
[1765994534894,0.3608,86658.0,86655.0,3.11e-06]
[1765994535482,0.3608,86658.0,86650.0,9e-08]
[1765994535682,0.3608,86651.0,86632.0,0.3608]
[1765994535884,0.3608,86642.0,86629.0,0.3608]
[1765994536090,0.0115426,86663.0,86629.0,0.3608]
[1765994536091,0.3608,86672.0,86641.0,0.3608]
[1765994536291,0.36080008,86698.0,86671.0,0.3608]
[1765994536494,0.36080008,86698.0,86662.0,0.22730868]
[1765994536495,0.0115398,86684.0,86675.0,0.3608]
[1765994536686,0.00517311,86688.0,86681.0,0.3608]
[1765994536991,0.0115404,86680.0,86660.0,0.3723429]
[1765994537184,0.3608,86672.0,86660.0,0.58810868]
[1765994537379,0.3608,86661.0,86655.0,0.02897821]
[1765994537585,0.3608,86661.0,86650.0,0.3608]
[1765994537795,0.3608,86661.0,86650.0,0.40173264]
[1765994538182,0.3608,86661.0,86652.0,0.011544]
[1765994538388,0.00017311,86664.0,86658.0,0.3608]
[1765994538586,0.3608,86672.0,86658.0,0.3608]
[1765994538780,0.3608,86678.0,86660.0,0.33318916]
[1765994538986,0.3608,86678.0,86666.0,0.3608]
[1765994539489,0.3608,86678.0,86666.0,0.19361604]
[1765994539691,0.3608,86678.0,86666.0,0.20515814]
[1765994539895,0.3608,86678.0,86666.0,0.19361604]
[1765994540694,0.3608,86678.0,86667.0,0.011542]
[1765994540886,0.3608,86678.0,86669.0,0.0115417]
[1765994541288,0.00017311,86681.0,86669.0,0.0115417]
[1765994541693,0.00017311,86681.0,86666.0,0.20515824]
[1765994541992,0.011541,86675.0,86666.0,0.02694604]
[1765994542188,0.3608,86667.0,86663.0,3.11e-06]
[1765994542581,0.3608,86667.0,86663.0,0.02896589]
[1765994542899,0.3608,86667.0,86650.0,0.0115442]
[1765994543098,0.3608,86656.0,86652.0,0.011544]
[1765994543292,0.3608,86667.0,86650.0,0.02846212]
[1765994543499,0.3608,86667.0,86643.0,0.3608]
[1765994543692,0.3608,86659.0,86647.0,0.38916499]
[1765994543882,0.3608,86659.0,86650.0,0.002]
[1765994544389,0.3608,86659.0,86647.0,0.38916499]
[1765994544587,0.3608,86659.0,86650.0,0.002]
[1765994544992,0.00017311,86662.0,86650.0,0.002]
[1765994545194,3.11e-06,86662.0,86650.0,0.002]
[1765994545392,0.3608,86677.0,86662.0,0.0115427]
[1765994545606,0.3608,86677.0,86664.0,0.0115424]
[1765994545796,0.3608,86677.0,86667.0,0.33318916]
[1765994546000,0.005,86688.0,86676.0,0.3608]
[1765994546597,0.3723405,86679.0,86673.0,3.11e-06]
[1765994546898,0.0115406,86678.0,86673.0,3.11e-06]
[1765994547090,0.3608,86679.0,86673.0,3.11e-06]
[1765994547402,0.0115409,86676.0,86673.0,3.11e-06]
[1765994548300,0.3608,86676.0,86656.0,0.3608]
[1765994548595,0.3608,86663.0,86651.0,0.02903315]
[1765994548894,0.3608,86663.0,86642.0,0.3608]
[1765994549095,0.3608,86656.0,86642.0,0.39017384]
[1765994549294,0.3608,86656.0,86647.0,0.0115447]
[1765994549494,0.3608,86656.0,86644.0,0.011545]
[1765994549692,0.3608,86656.0,86643.0,0.0115453]
[1765994549999,0.3608,86656.0,86642.0,0.40171914]
[1765994550391,0.3608,86656.0,86644.0,0.0115451]
[1765994551302,0.3608,86656.0,86642.0,0.39317384]
[1765994551494,0.3608,86656.0,86643.0,0.0115452]
[1765994551701,0.3608,86647.0,86642.0,0.03237384]
[1765994552192,0.00017311,86658.0,86647.0,0.0115447]
[1765994552389,0.00017311,86658.0,86645.0,0.19413]
[1765994552605,0.3608,86647.0,86640.0,3.11e-06]
[1765994553801,0.3608,86647.0,86644.0,0.002]
[1765994554190,0.00017311,86658.0,86646.0,0.3608]
[1765994554390,0.36097311,86658.0,86648.0,0.33321453]
[1765994554595,0.36097311,86658.0,86646.0,0.3608]
[1765994554596,0.00017311,86658.0,86646.0,0.3608]
[1765994555502,0.00017311,86658.0,86646.0,0.3723448]
[1765994555695,0.00017311,86658.0,86646.0,0.3608]
[1765994556093,0.00017311,86658.0,86640.0,3.11e-06]
[1765994556094,0.0115453,86643.0,86640.0,3.11e-06]
[1765994556299,0.3608,86641.0,86640.0,3.11e-06]
[1765994557193,0.3608,86641.0,86640.0,0.00100311]
[1765994557799,0.3618,86641.0,86640.0,3.11e-06]
[1765994558501,0.00099999,86690.0,86652.0,0.3608]
[1765994558694,0.0115364,86710.0,86640.0,0.11101376]
[1765994558695,0.0115373,86703.0,86687.0,0.7216]
[1765994558895,0.0115378,86700.0,86687.0,0.55493]
[1765994559112,0.33321453,86710.0,86687.0,0.55493]
[1765994559310,0.0115368,86707.0,86687.0,0.55493]
[1765994559608,0.00017311,86701.0,86697.0,0.3608]
[1765994560103,0.00017311,86701.0,86697.0,0.19413]
[1765994560912,9e-08,86701.0,86697.0,0.205668]
[1765994561111,9e-08,86701.0,86700.0,0.3608]
[1765994562005,9e-08,86701.0,86700.0,0.19413]
[1765994562207,9e-08,86701.0,86700.0,0.02746]
[1765994562713,0.001,86698.0,86696.0,0.3608]
[1765994563012,0.001,86698.0,86684.0,0.02897499]
[1765994563013,0.0115382,86696.0,86684.0,0.00017311]
[1765994563206,0.3608,86685.0,86675.0,0.0115409]
[1765994563400,0.3608,86685.0,86677.0,0.0115406]
[1765994563702,0.0115366,86709.0,86670.0,0.72356641]
[1765994563703,0.3608,86720.0,86709.0,0.0115363]
[1765994563905,0.0115319,86744.0,86710.0,0.33321453]
[1765994564106,0.33321453,86750.0,86710.0,0.33321453]
[1765994564307,0.0115341,86728.0,86710.0,0.33321453]
[1765994564506,0.3608,86730.0,86717.0,0.3608]
[1765994565008,0.3608,86747.0,86729.0,0.3608]
[1765994565207,0.33321453,86770.0,86737.0,0.33321453]
[1765994565519,0.0115317,86745.0,86725.0,0.21636]
[1765994565810,0.3608,86744.0,86730.0,0.3608]
[1765994566415,0.00017297,86746.0,86730.0,0.69401453]
[1765994566607,0.00017297,86746.0,86733.0,0.0115333]
[1765994566912,0.00017297,86746.0,86736.0,0.0115328]
[1765994567905,0.00017297,86746.0,86733.0,0.0115332]
[1765994569016,0.00017297,86746.0,86733.0,0.0125332]
[1765994569418,0.00017297,86746.0,86733.0,0.001]
[1765994569810,0.3608,86734.0,86705.0,0.0115369]
[1765994570115,0.3608,86715.0,86708.0,0.03385258]
[1765994570415,0.3608,86715.0,86693.0,9.516e-05]
[1765994570623,0.372335,86721.0,86706.0,0.3608]
[1765994570809,0.00017297,86722.0,86714.0,0.3608]
[1765994571009,0.0115349,86721.0,86706.0,0.3608]
[1765994571416,0.36097297,86722.0,86707.0,0.0115367]
[1765994572118,0.36097297,86722.0,86708.0,0.001]
[1765994572119,0.011535,86721.0,86708.0,0.001]
[1765994572312,0.3608,86711.0,86705.0,0.00017297]
[1765994572622,0.3608,86711.0,86707.0,0.001]
[1765994573117,0.3608,86711.0,86705.0,0.00017297]
[1765994573514,0.36097297,86722.0,86710.0,0.3608]
[1765994574021,0.3608,86711.0,86705.0,0.00017297]
[1765994574213,0.3608,86711.0,86694.0,0.3608]
[1765994574410,0.3608,86703.0,86694.0,0.3608]
[1765994574608,0.0115374,86702.0,86693.0,9.516e-05]
[1765994574815,0.3723373,86703.0,86693.0,9.516e-05]
[1765994575109,0.3608,86703.0,86693.0,9.516e-05]
[1765994575509,0.0115374,86702.0,86693.0,9.516e-05]
[1765994575714,0.0115384,86695.0,86689.0,2e-08]
[1765994576714,9.516e-05,86694.0,86689.0,2e-08]
[1765994578221,9.516e-05,86694.0,86689.0,0.00100002]
[1765994579623,0.19422516,86696.0,86689.0,0.00100002]
[1765994579823,0.00017297,86701.0,86689.0,0.00100002]
[1765994580409,0.00017297,86701.0,86692.0,0.3608]
[1765994580630,0.3608,86693.0,86689.0,0.00100002]
[1765994581227,7e-08,86701.0,86689.0,0.36180002]
[1765994581527,7e-08,86701.0,86696.0,0.3608]
[1765994582624,7e-08,86701.0,86696.0,0.3733382]
[1765994583017,7e-08,86701.0,86696.0,0.3723382]
[1765994583521,7e-08,86701.0,86699.0,0.0115378]
[1765994583724,0.3608,86721.0,86706.0,0.0115368]
[1765994584022,0.3608,86707.0,86698.0,0.00230687]
[1765994584224,0.3608,86707.0,86696.0,0.35410687]
[1765994585416,0.3608,86707.0,86706.0,0.001]
[1765994585611,0.0115377,86700.0,86688.0,0.34097297]
[1765994585917,0.3608,86690.0,86664.0,0.64164]
[1765994586115,0.3608,86690.0,86674.0,0.3608]
[1765994586310,0.3608,86690.0,86679.0,0.0115405]
[1765994586516,0.3608,86690.0,86678.0,0.0115406]
[1765994586822,0.3608,86690.0,86680.0,0.0115403]
[1765994587015,0.3608,86690.0,86674.0,0.3608]
[1765994587417,0.3608,86690.0,86682.0,0.01154]
[1765994587627,2.97e-06,86693.0,86684.0,0.0115398]
[1765994587810,2.97e-06,86693.0,86686.0,0.0115395]
[1765994588015,2.97e-06,86693.0,86683.0,0.3723398]
[1765994588213,2.97e-06,86693.0,86690.0,0.3723389]
[1765994588623,0.3608,86717.0,86690.0,0.3608]
[1765994588818,0.0115359,86714.0,86700.0,0.3608]
[1765994589128,0.3723365,86709.0,86690.0,0.3608]
[1765994589320,0.0115369,86706.0,86690.0,0.3608]
[1765994589916,0.3608,86700.0,86684.0,0.0115397]
[1765994590221,0.0115381,86697.0,86683.0,0.00117002]
[1765994590422,0.3608,86691.0,86680.0,0.02746002]
[1765994590639,0.3608,86691.0,86647.0,0.05300325]
[1765994590640,0.3608,86684.0,86661.0,0.02852778]
[1765994590922,0.3608,86667.0,86660.0,0.33321453]
[1765994591131,0.3608,86667.0,86658.0,0.00230794]
[1765994591817,0.3608,86659.0,86647.0,0.0115447]
[1765994592010,0.19413,86659.0,86646.0,0.00014577]